bitfinex/quotes_BTCUSD_20241009
["timestamp","ask_amount","ask_price","bid_price","bid_amount"]
[1728508564604,0.1948,60649.0,60648.0,0.264885]
[1728508564823,0.1948,60649.0,60648.0,0.266885]
[1728508565042,0.1948,60649.0,60648.0,0.268885]
[1728508566017,0.1948,60649.0,60648.0,0.266885]
[1728508566232,0.1948,60649.0,60648.0,0.264885]
[1728508566664,0.1948,60649.0,60648.0,0.266885]
[1728508567303,0.01,60649.0,60648.0,0.67714308]
[1728508567530,0.01,60649.0,60648.0,0.42935664]
[1728508567738,0.01,60649.0,60648.0,0.43135664]
[1728508569410,0.01,60649.0,60648.0,0.42935664]
[1728508569628,0.01,60649.0,60648.0,0.42735664]
[1728508570050,0.01,60649.0,60648.0,0.43135664]
[1728508570768,0.01,60649.0,60648.0,0.42735664]
[1728508571267,0.01,60649.0,60648.0,0.44235664]
[1728508571519,0.01,60649.0,60648.0,0.43435664]
[1728508572223,0.01,60649.0,60648.0,0.42735664]
[1728508572719,0.445483,60649.0,60648.0,0.003634]
[1728508572955,0.47709649,60649.0,60648.0,0.005634]
[1728508573201,0.47709649,60649.0,60648.0,0.003634]
[1728508573444,0.47709649,60649.0,60648.0,0.173519]
[1728508573445,0.28563431,60649.0,60648.0,0.173519]
[1728508573661,0.23681349,60649.0,60648.0,0.173519]
[1728508573875,0.23681349,60649.0,60648.0,0.166519]
[1728508574315,0.23881349,60649.0,60648.0,0.174519]
[1728508574557,0.23881349,60649.0,60648.0,0.167519]
[1728508574959,0.23881349,60649.0,60648.0,0.17416719]
[1728508575224,0.23881218,60649.0,60648.0,0.52195363]
[1728508575385,0.02635409,60649.0,60648.0,0.27316719]
[1728508576465,0.02635409,60649.0,60648.0,0.27516719]
[1728508577106,0.02635409,60649.0,60648.0,0.27316719]
[1728508577344,0.02735409,60649.0,60648.0,0.27316719]
[1728508579365,0.02635409,60649.0,60648.0,0.68179127]
[1728508579617,0.01,60649.0,60648.0,0.43400483]
[1728508579819,0.01,60649.0,60648.0,0.43600483]
[1728508580230,0.01,60649.0,60648.0,0.43400483]
[1728508581081,0.01,60649.0,60648.0,0.44000483]
[1728508581716,0.01,60649.0,60648.0,0.71079127]
[1728508581928,0.01,60649.0,60648.0,0.67220483]
[1728508582374,0.01,60649.0,60648.0,0.67120483]
[1728508582820,0.01,60649.0,60648.0,0.67420483]
[1728508582998,0.01,60649.0,60648.0,0.67820483]
[1728508583209,0.01,60649.0,60648.0,0.69120483]
[1728508583644,0.01,60649.0,60648.0,0.66620483]
[1728508583851,0.01,60649.0,60648.0,0.67920483]
[1728508584078,0.01,60649.0,60648.0,0.66620483]
[1728508585386,0.01,60649.0,60648.0,0.67820483]
[1728508585604,0.01,60649.0,60648.0,0.68820483]
[1728508585814,0.01,60649.0,60648.0,0.70120483]
[1728508586048,0.01,60649.0,60648.0,0.68620483]
[1728508586267,0.01,60649.0,60648.0,0.69920483]
[1728508587628,0.01,60649.0,60648.0,1.22099127]
[1728508587842,0.01,60649.0,60648.0,0.97320483]
[1728508589965,0.01,60649.0,60648.0,0.97120483]
[1728508590603,0.01,60649.0,60648.0,0.97320483]
[1728508592311,0.01,60649.0,60648.0,1.57528883]
[1728508592522,0.01,60649.0,60648.0,1.57663283]
[1728508592767,0.01,60649.0,60648.0,1.55188583]
[1728508593198,0.01,60649.0,60648.0,1.39044883]
[1728508593407,0.01,60649.0,60648.0,1.39244883]
[1728508593630,0.01,60649.0,60648.0,1.39044883]
[1728508593845,0.01,60649.0,60648.0,1.31395883]
[1728508594511,0.01,60649.0,60648.0,1.31595883]
[1728508596107,0.01,60649.0,60648.0,1.31395883]
[1728508596333,0.01,60649.0,60648.0,1.11517183]
[1728508596538,0.01,60649.0,60648.0,1.11017183]
[1728508596795,0.01,60649.0,60648.0,1.11517183]
[1728508597685,0.01,60649.0,60648.0,0.98200483]
[1728508598220,0.01,60649.0,60648.0,0.85900483]
[1728508598956,0.01,60649.0,60648.0,0.68616719]
[1728508599201,0.01,60649.0,60648.0,0.67316719]
[1728508599442,0.01,60649.0,60648.0,0.69416719]
[1728508599683,0.01,60649.0,60648.0,0.68516719]
[1728508600170,0.01,60649.0,60648.0,0.69316719]
[1728508600405,0.01,60649.0,60648.0,0.68516719]
[1728508600687,0.01,60649.0,60648.0,0.67316719]
[1728508600916,0.01,60649.0,60648.0,0.77416719]
[1728508601933,0.01,60649.0,60648.0,0.77616719]
[1728508605215,0.01,60649.0,60648.0,0.77516719]
[1728508605644,0.01,60649.0,60648.0,0.77416719]
[1728508606063,0.01,60649.0,60648.0,0.77616719]
[1728508606733,0.01,60649.0,60648.0,0.77516719]
[1728508607195,0.01,60649.0,60648.0,0.27616719]
[1728508607665,0.0264093,60649.0,60648.0,0.27616719]
[1728508607878,0.01422456,60649.0,60648.0,0.27616719]
[1728508611139,0.01422456,60649.0,60648.0,0.27516719]
[1728508611340,0.01422456,60649.0,60648.0,0.27316719]
[1728508611555,0.01422456,60649.0,60648.0,0.27716719]
[1728508612217,0.01422456,60649.0,60648.0,0.52495363]
[1728508612453,0.01422456,60649.0,60648.0,0.27716719]
[1728508612719,0.01,60649.0,60648.0,0.68579127]
[1728508612948,0.01422456,60649.0,60648.0,1.08350783]
[1728508613178,0.01,60649.0,60648.0,1.08150783]
[1728508613671,0.01,60649.0,60648.0,1.08350783]
[1728508613902,0.01,60649.0,60648.0,1.16380783]
[1728508614598,0.01,60649.0,60648.0,1.16180783]
[1728508614836,0.01,60649.0,60648.0,1.16080783]
[1728508615062,0.01,60649.0,60648.0,1.15980783]
[1728508615522,0.01,60649.0,60648.0,1.17380783]
[1728508616189,0.01,60649.0,60648.0,1.16880783]
[1728508616668,0.01,60649.0,60648.0,1.15980783]
[1728508616882,0.01,60649.0,60648.0,1.17380783]
[1728508617547,0.01,60649.0,60648.0,1.68780783]
[1728508618407,0.01,60649.0,60648.0,1.67380783]
[1728508619456,0.01,60649.0,60648.0,1.65980783]
[1728508620127,0.01,60649.0,60648.0,1.05130483]
[1728508620620,0.01,60649.0,60648.0,1.87431283]
[1728508621294,0.01,60649.0,60648.0,1.85681083]
[1728508622880,0.01,60649.0,60648.0,1.87181083]
[1728508623386,0.000817,60655.0,60648.0,1.87181083]
[1728508623387,0.000817,60655.0,60654.0,0.264869]
[1728508623616,0.000817,60655.0,60654.0,0.98129764]
[1728508624263,0.000817,60655.0,60654.0,0.98329764]
[1728508624953,0.000817,60655.0,60654.0,0.99929764]
[1728508625875,0.000817,60655.0,60654.0,0.99129764]
[1728508626324,0.000817,60655.0,60654.0,0.98329764]
[1728508626534,0.000817,60655.0,60654.0,0.99529764]
[1728508627416,0.000817,60655.0,60654.0,0.98329764]
[1728508627631,0.000817,60655.0,60654.0,0.99229764]
[1728508627843,0.000817,60655.0,60654.0,1.00229764]
[1728508628761,0.0002,60666.0,60665.0,0.264839]
[1728508628983,0.0002,60666.0,60665.0,0.42567664]
[1728508629229,0.01672458,60666.0,60665.0,0.42567664]
[1728508629450,0.0002,60666.0,60665.0,0.42567664]
[1728508630599,0.0012,60666.0,60665.0,0.42567664]
[1728508630810,0.0012,60666.0,60665.0,0.92567664]
[1728508631472,0.0002,60666.0,60665.0,0.92567664]
[1728508631696,0.0002,60666.0,60665.0,0.93067664]
[1728508632619,0.0002,60666.0,60665.0,0.94057264]
[1728508632833,0.0002,60666.0,60665.0,0.96357264]
[1728508633073,0.0002,60666.0,60665.0,0.95857264]
[1728508633293,0.0002,60666.0,60665.0,0.96257264]
[1728508634178,0.0002,60666.0,60665.0,0.95957264]
[1728508634397,0.0002,60666.0,60665.0,0.96057264]
[1728508634610,0.0002,60666.0,60665.0,0.96557264]
[1728508635041,0.0002,60666.0,60665.0,2.96557264]
[1728508636330,0.0002,60666.0,60665.0,2.97382469]
[1728508638832,0.001017,60666.0,60665.0,2.97382469]
[1728508641608,0.000816,60682.0,60677.0,0.287807]
[1728508641829,0.000817,60694.0,60693.0,0.264763]
[1728508642053,0.000817,60694.0,60693.0,0.451553]
[1728508642285,0.000817,60694.0,60693.0,0.44860064]
[1728508642512,0.00521826,60694.0,60693.0,0.44860064]
[1728508642766,0.01749792,60694.0,60693.0,0.44860064]
[1728508643447,0.01749792,60694.0,60693.0,0.45960064]
[1728508643917,0.01749792,60694.0,60693.0,0.43660064]
[1728508644128,0.01749792,60694.0,60693.0,0.92560064]
[1728508644343,0.01749792,60694.0,60693.0,0.93660064]
[1728508644795,0.01749792,60694.0,60693.0,0.92560064]
[1728508645013,0.01749792,60694.0,60693.0,0.93760064]
[1728508645503,0.01749792,60694.0,60693.0,0.94960064]
[1728508645928,0.01749792,60694.0,60693.0,0.93760064]
[1728508646363,0.01749792,60694.0,60693.0,1.26543299]
[1728508646844,0.01749792,60694.0,60693.0,1.21070064]
[1728508647064,0.000817,60694.0,60693.0,1.20170064]
[1728508647275,0.000817,60694.0,60693.0,1.21470064]
[1728508647496,7.2e-05,60700.0,60699.0,0.264747]
[1728508647714,7.2e-05,60700.0,60699.0,0.58896576]
[1728508647957,0.24778644,60722.0,60715.0,0.264703]
[1728508648391,0.182,60722.0,60715.0,0.264703]
[1728508648599,0.0786,60721.0,60715.0,0.264703]
[1728508649489,0.01809567,60716.0,60715.0,0.273703]
[1728508649699,0.00533467,60716.0,60715.0,0.264703]
[1728508649952,0.000817,60716.0,60715.0,0.264703]
[1728508650221,0.01809567,60716.0,60715.0,0.772703]
[1728508650448,0.000817,60716.0,60715.0,0.772703]
[1728508650682,0.01809567,60716.0,60715.0,0.772703]
[1728508650900,0.00533467,60716.0,60715.0,0.772703]
[1728508651384,0.00533467,60716.0,60715.0,0.781703]
[1728508651605,0.000817,60716.0,60715.0,0.764703]
[1728508651877,0.000817,60716.0,60715.0,0.773703]
[1728508652097,0.000817,60716.0,60715.0,0.781703]
[1728508652319,0.0786,60721.0,60719.0,0.264693]
[1728508652969,0.0786,60721.0,60716.0,1.999183]
[1728508653230,0.05928954,60721.0,60716.0,2.00741709]
[1728508653444,0.182,60720.0,60716.0,1.999183]
[1728508654111,0.01754835,60719.0,60716.0,1.999183]
[1728508655214,0.01754835,60719.0,60716.0,2.000183]
[1728508655434,0.01754835,60719.0,60716.0,1.999183]
[1728508655660,0.01854835,60719.0,60716.0,1.999183]
[1728508656087,0.01754835,60719.0,60716.0,1.999183]
[1728508656514,0.01854835,60719.0,60716.0,1.999183]
[1728508657572,0.01954835,60719.0,60716.0,1.999183]
[1728508657780,0.01854835,60719.0,60716.0,1.999183]
[1728508658230,0.01954835,60719.0,60716.0,1.999183]
[1728508658507,0.01854835,60719.0,60716.0,1.999183]
[1728508658723,0.01854835,60719.0,60716.0,2.000183]
[1728508658941,0.001,60719.0,60716.0,2.000183]
[1728508659153,0.001,60719.0,60716.0,1.999183]
[1728508659369,0.002,60719.0,60716.0,1.999183]
[1728508661667,0.00452855,60718.0,60716.0,1.999183]
[1728508661891,0.0144918,60718.0,60716.0,1.999183]
[1728508662371,0.002,60719.0,60716.0,1.999183]
[1728508662591,0.01513727,60718.0,60716.0,1.999183]
[1728508662798,0.001817,60719.0,60716.0,1.999183]
[1728508662995,0.01513726,60718.0,60716.0,1.999183]
[1728508663203,0.42613009,60717.0,60716.0,1.999183]
[1728508663420,0.637455,60717.0,60716.0,1.999183]
[1728508663652,0.65711833,60717.0,60716.0,1.999183]
[1728508663876,0.65192725,60717.0,60716.0,1.999183]
[1728508664729,0.66707312,60717.0,60716.0,1.999183]
[1728508664967,0.66807312,60717.0,60716.0,2.000183]
[1728508665171,0.66707312,60717.0,60716.0,1.999183]
[1728508665604,0.61356035,60717.0,60716.0,2.000183]
[1728508665830,0.67311496,60717.0,60716.0,2.001183]
[1728508667390,0.50741696,60717.0,60716.0,2.000183]
[1728508667601,0.51741696,60717.0,60716.0,2.001183]
[1728508667815,0.36157932,60717.0,60716.0,2.000183]
[1728508668017,0.36159615,60717.0,60716.0,2.000183]
[1728508668703,0.36659615,60717.0,60716.0,2.001183]
[1728508668938,0.35659615,60717.0,60716.0,2.000183]
[1728508669145,0.29702471,60717.0,60716.0,1.999183]
[1728508669349,0.35172009,60717.0,60716.0,1.999183]
[1728508669988,0.35672009,60717.0,60716.0,2.000183]
[1728508670381,0.36172009,60717.0,60716.0,2.001183]
[1728508671219,0.35672009,60717.0,60716.0,2.000183]
[1728508671426,0.35172009,60717.0,60716.0,1.999183]
[1728508671657,0.36172009,60717.0,60716.0,1.999183]
[1728508671886,0.34652693,60717.0,60716.0,1.999183]
[1728508672312,0.35152693,60717.0,60716.0,1.999183]
[1728508672559,0.26607447,60717.0,60716.0,1.999183]
[1728508673045,0.26107447,60717.0,60716.0,1.999183]
[1728508673269,0.73967436,60717.0,60716.0,1.999183]
[1728508673493,0.72967436,60717.0,60716.0,1.999183]
[1728508673718,0.73467436,60717.0,60716.0,1.999183]
[1728508673944,0.73667436,60717.0,60716.0,1.999183]
[1728508674374,0.73167436,60717.0,60716.0,1.999183]
[1728508674588,0.72667436,60717.0,60716.0,2.000815]
[1728508674827,0.73567436,60717.0,60716.0,2.001815]
[1728508675045,0.67346257,60717.0,60716.0,2.002815]
[1728508675249,0.66446257,60717.0,60716.0,2.001815]
[1728508675730,0.67346257,60717.0,60716.0,2.002815]
[1728508676282,0.72431547,60717.0,60716.0,2.002815]
[1728508676504,0.72231547,60717.0,60716.0,2.002815]
[1728508677928,0.72431547,60717.0,60716.0,2.002815]
[1728508678821,0.73954139,60717.0,60716.0,2.002815]
[1728508679735,0.68471863,60717.0,60716.0,2.002815]
[1728508679944,0.73953555,60717.0,60716.0,2.002815]
[1728508680197,0.71517151,60717.0,60716.0,2.002815]
[1728508680403,0.75476444,60717.0,60716.0,2.002815]
[1728508680614,0.73953752,60717.0,60716.0,2.002815]
[1728508681083,0.73258506,60717.0,60716.0,2.002815]
[1728508682162,0.73036239,60717.0,60716.0,2.002815]
[1728508682388,0.68184897,60717.0,60716.0,2.002815]
[1728508683271,0.61090143,60717.0,60716.0,2.002815]
[1728508683484,0.28536579,60717.0,60716.0,2.002815]
[1728508683721,0.07807956,60717.0,60716.0,2.167516]
[1728508683985,0.09331705,60717.0,60716.0,2.167516]
[1728508684429,0.08431705,60717.0,60716.0,2.166516]
[1728508684652,0.06407956,60717.0,60716.0,2.165516]
[1728508684872,0.07384742,60717.0,60716.0,2.166516]
[1728508685083,0.07884742,60717.0,60716.0,2.166516]
[1728508685316,0.06984742,60717.0,60716.0,2.165516]
[1728508685535,0.03023358,60717.0,60716.0,2.165516]
[1728508685745,0.018,60717.0,60716.0,2.165516]
[1728508685957,0.03324034,60717.0,60716.0,2.165516]
[1728508686175,0.013,60717.0,60716.0,2.264716]
[1728508686403,0.013,60717.0,60716.0,2.42555364]
[1728508686632,0.016,60717.0,60716.0,2.42555364]
[1728508686838,0.01,60717.0,60716.0,2.42555364]
[1728508687044,0.01,60717.0,60716.0,2.56295364]
[1728508687276,0.011,60717.0,60716.0,2.57195364]
[1728508687482,0.01,60717.0,60716.0,2.56595364]
[1728508687924,0.011,60717.0,60716.0,2.57195364]
[1728508688135,0.012,60717.0,60716.0,2.68335364]
[1728508688350,0.012,60717.0,60716.0,2.65535364]
[1728508688554,0.012,60717.0,60716.0,2.51795364]
[1728508689246,0.011,60717.0,60716.0,2.50895364]
[1728508689667,0.011,60717.0,60716.0,2.51795364]
[1728508689880,0.011,60717.0,60716.0,2.50995364]
[1728508689881,0.01,60717.0,60716.0,2.50995364]
[1728508690327,0.011,60717.0,60716.0,2.52395364]
[1728508690786,0.01,60717.0,60716.0,2.50995364]
[1728508690993,0.011,60717.0,60716.0,2.51895364]
[1728508692697,0.011,60717.0,60716.0,2.018015]
[1728508693062,0.175698,60717.0,60716.0,2.009015]
[1728508693264,0.19090314,60717.0,60716.0,2.009015]
[1728508693472,0.20308646,60717.0,60716.0,2.008015]
[1728508693684,0.20208646,60717.0,60716.0,2.000015]
[1728508694107,0.48755805,60717.0,60716.0,2.000015]
[1728508694313,0.76586434,60717.0,60716.0,2.009015]
[1728508694530,0.98984159,60717.0,60716.0,2.009015]
[1728508694739,0.76855805,60717.0,60716.0,0.009215]
[1728508694952,0.76755805,60717.0,60716.0,0.000215]
[1728508695159,0.76755805,60717.0,60702.0,0.00843166]
[1728508695160,0.16968846,60703.0,60702.0,0.00843166]
[1728508695374,0.38716245,60703.0,60702.0,0.00843166]
[1728508695644,0.37195731,60703.0,60702.0,0.00843166]
[1728508695880,0.46845843,60703.0,60702.0,0.00843166]
[1728508696107,0.492779,60703.0,60702.0,0.00843166]
[1728508696342,0.63129607,60703.0,60702.0,0.00843166]
[1728508696600,0.16969346,60701.0,60700.0,4e-05]
[1728508696832,0.55506651,60701.0,60700.0,4e-05]
[1728508697056,0.53522317,60701.0,60700.0,4e-05]
[1728508697289,0.48652773,60701.0,60700.0,4e-05]
[1728508697724,0.35020031,60701.0,60700.0,4e-05]
[1728508698674,0.35920031,60701.0,60700.0,0.00104]
[1728508698888,0.35920031,60701.0,60700.0,0.002672]
[1728508698889,0.34399919,60701.0,60700.0,0.002672]
[1728508699112,0.37317963,60701.0,60700.0,0.003672]
[1728508701941,0.37517963,60701.0,60700.0,0.003672]
[1728508702912,0.39817963,60701.0,60700.0,0.003672]
[1728508703129,0.54687507,60701.0,60700.0,0.003672]
[1728508703557,0.49817963,60701.0,60700.0,0.003672]
[1728508704066,0.47517963,60701.0,60700.0,0.001672]
[1728508704290,0.68826247,60701.0,60700.0,0.003672]
[1728508704739,0.67926247,60701.0,60700.0,0.002672]
[1728508704954,0.63763817,60701.0,60700.0,0.003672]
[1728508705175,0.44415049,60701.0,60700.0,0.003672]
[1728508705394,0.43615049,60701.0,60700.0,0.002672]
[1728508705633,0.54101704,60701.0,60700.0,0.002672]
[1728508706079,0.55501704,60701.0,60700.0,0.003672]
[1728508706272,0.54101704,60701.0,60700.0,0.002672]
[1728508706509,0.58962887,60701.0,60700.0,0.002672]
[1728508706723,0.59462887,60701.0,60700.0,0.001672]
[1728508706949,0.54601704,60701.0,60700.0,0.001672]
[1728508707220,0.40653479,60701.0,60700.0,0.001672]
[1728508707459,0.40853479,60701.0,60700.0,0.001672]
[1728508707700,0.39453479,60701.0,60700.0,0.001672]
[1728508707919,0.40853479,60701.0,60700.0,0.001672]
[1728508708143,0.47527568,60701.0,60700.0,0.001672]
[1728508708381,0.4995879,60701.0,60700.0,0.001672]
[1728508708608,0.48440746,60701.0,60700.0,0.001672]
[1728508708828,0.42663117,60701.0,60700.0,0.001672]
[1728508709281,0.42663117,60701.0,60691.0,0.24778644]
[1728508709282,0.17071846,60692.0,60691.0,0.24778644]
[1728508709506,0.3315561,60692.0,60691.0,0.24778644]
[1728508709790,0.35653804,60692.0,60691.0,0.24778644]
[1728508710022,0.35653804,60692.0,60678.0,0.164804]
[1728508710023,0.164785,60685.0,60678.0,0.164804]
[1728508710243,0.164785,60685.0,60677.0,0.24828644]
[1728508710244,0.164785,60685.0,60679.0,0.164799]
[1728508710483,0.164794,60682.0,60679.0,0.164799]
[1728508710599,0.00495246,60688.0,60677.0,0.41259044]
[1728508710600,0.329571,60685.0,60677.0,0.41259044]
[1728508710837,0.00495246,60681.0,60674.0,0.00813872]
[1728508711075,0.00495246,60678.0,60675.0,0.24778644]
[1728508711305,0.164809,60676.0,60675.0,0.24778644]
[1728508711525,0.164816,60674.0,60670.0,0.164825]
[1728508711927,0.164816,60674.0,60670.0,0.164824]
[1728508712145,0.164816,60674.0,60669.0,0.0005]
[1728508712348,0.164816,60674.0,60670.0,0.164825]
[1728508712985,0.171816,60674.0,60670.0,0.165825]
[1728508713215,0.00435636,60673.0,60670.0,0.165825]
[1728508713607,0.00435636,60673.0,60670.0,0.001]
[1728508713844,0.164823,60671.0,60670.0,0.001]
[1728508714065,0.164823,60671.0,60670.0,0.002]
[1728508714295,0.1691739,60671.0,60670.0,0.002]
[1728508714514,0.0043509,60671.0,60670.0,0.165826]
[1728508714972,0.006,60673.0,60671.0,0.164823]
[1728508715591,0.011,60673.0,60671.0,0.164823]
[1728508716014,0.006,60673.0,60671.0,0.164823]
[1728508716270,0.008,60673.0,60671.0,0.165823]
[1728508716474,0.16482,60672.0,60671.0,0.001]
[1728508717796,0.17082,60672.0,60671.0,0.002]
[1728508718222,0.17082,60672.0,60671.0,0.001]
[1728508718434,0.17082,60672.0,60671.0,0.002]
[1728508718655,0.3426101,60672.0,60671.0,0.002]
[1728508718871,0.3366101,60672.0,60671.0,0.001]
[1728508719082,0.3366101,60672.0,60671.0,0.002]
[1728508719083,0.47169651,60672.0,60671.0,0.002]
[1728508719317,0.46569651,60672.0,60671.0,0.001]
[1728508719527,0.47369651,60672.0,60671.0,0.002]
[1728508720209,0.48883441,60672.0,60671.0,0.002]
[1728508720420,0.49413424,60672.0,60671.0,0.002]
[1728508722585,0.51713424,60672.0,60671.0,0.002]
[1728508722840,0.00495246,60667.0,60660.0,0.00807559]
[1728508723061,0.329663,60668.0,60655.0,0.001634]
[1728508723062,0.53731646,60656.0,60655.0,0.001634]
[1728508723293,0.62647899,60656.0,60655.0,0.001634]
[1728508723534,0.58234426,60656.0,60655.0,0.001634]
[1728508723810,0.58234426,60656.0,60648.0,0.001634]
[1728508723811,0.19283546,60649.0,60648.0,0.001634]
[1728508724022,0.3536731,60649.0,60648.0,0.001634]
[1728508724238,0.37380841,60649.0,60648.0,0.001634]
[1728508725088,0.37480841,60649.0,60648.0,0.001634]
[1728508725232,0.37530841,60649.0,60648.0,0.001634]
[1728508725464,0.51176515,60649.0,60648.0,0.001634]
[1728508725899,0.17135946,60640.0,60624.0,0.24778644]
[1728508726102,0.4359971,60640.0,60624.0,0.24778644]
[1728508726315,0.45618606,60640.0,60624.0,0.24778644]
[1728508726522,0.45618606,60640.0,60639.0,0.001632]
[1728508726684,0.60129527,60640.0,60639.0,0.001632]
[1728508727240,0.45668606,60640.0,60639.0,0.001632]
[1728508727664,0.47068606,60640.0,60639.0,0.001632]
[1728508728623,0.48468606,60640.0,60639.0,0.001632]
[1728508728843,0.47068606,60640.0,60639.0,0.001632]
[1728508729060,0.57068606,60640.0,60639.0,0.001632]
[1728508729280,0.74069527,60640.0,60639.0,0.001632]
[1728508729490,0.71153906,60640.0,60639.0,0.001632]
[1728508729705,0.74062763,60640.0,60639.0,0.001632]
[1728508729915,0.72662763,60640.0,60639.0,0.001632]
[1728508730127,0.93062763,60640.0,60639.0,0.001632]
[1728508731194,0.91662763,60640.0,60639.0,0.001632]
[1728508731408,0.90262763,60640.0,60639.0,0.001632]
[1728508731864,0.00645246,60638.0,60624.0,0.24778644]
[1728508732102,0.47029167,60638.0,60624.0,0.24778644]
[1728508732331,0.19390046,60625.0,60624.0,0.24778644]
[1728508732540,0.36982667,60625.0,60624.0,0.24778644]
[1728508732764,0.47283584,60625.0,60624.0,0.24778644]
[1728508732979,0.47283584,60625.0,60621.0,0.001634]
[1728508732980,0.19290846,60622.0,60621.0,0.001634]
[1728508733198,0.3307461,60622.0,60621.0,0.001634]
[1728508733411,0.3458031,60622.0,60621.0,0.001634]
[1728508733634,0.35046504,60622.0,60621.0,0.001634]
[1728508733850,0.48448164,60622.0,60621.0,0.001634]
[1728508734288,0.48342464,60622.0,60621.0,0.001634]
[1728508734966,0.49848146,60622.0,60621.0,0.001634]
[1728508735190,0.53647373,60622.0,60621.0,0.001634]
[1728508735422,0.52247373,60622.0,60621.0,0.001634]
[1728508735864,0.53647373,60622.0,60621.0,0.001634]
[1728508735867,0.53697373,60622.0,60621.0,0.001634]
[1728508736123,0.52297373,60622.0,60621.0,0.001634]
[1728508736364,0.53697373,60622.0,60621.0,0.001634]
[1728508736849,0.52297373,60622.0,60621.0,0.001634]
[1728508737110,0.53697373,60622.0,60621.0,0.001634]
[1728508737369,0.52297373,60622.0,60621.0,0.001634]
[1728508737597,0.50897373,60622.0,60621.0,0.001634]
[1728508737858,0.62247373,60622.0,60621.0,0.001634]
[1728508738099,0.63697373,60622.0,60621.0,0.001634]
[1728508738602,0.62297373,60622.0,60621.0,0.001634]
[1728508738886,0.50145713,60622.0,60621.0,0.001634]
[1728508739134,0.47345713,60622.0,60621.0,0.001634]
[1728508739650,0.48745713,60622.0,60621.0,0.001634]
[1728508739891,0.47345713,60622.0,60621.0,0.001634]
[1728508740121,0.63426374,60622.0,60621.0,0.001634]
[1728508740380,0.64826374,60622.0,60621.0,0.001634]
[1728508740621,0.66226374,60622.0,60621.0,0.001634]
[1728508740849,0.00495246,60618.0,60617.0,0.005]
[1728508741079,0.4153913,60618.0,60617.0,0.005]
[1728508741308,0.57441849,60618.0,60617.0,0.005]
[1728508741528,0.57591849,60618.0,60617.0,0.005]
[1728508741742,0.57591849,60618.0,60609.0,0.001632]
[1728508741743,0.16994146,60610.0,60609.0,0.001632]
[1728508741991,0.36882819,60610.0,60609.0,0.001632]
[1728508742207,0.50485071,60610.0,60609.0,0.001632]
[1728508742438,0.5093612,60610.0,60609.0,0.001632]
[1728508743147,0.38733868,60610.0,60609.0,0.001632]
[1728508743888,0.40133868,60610.0,60609.0,0.001632]
[1728508745152,0.37833868,60610.0,60609.0,0.001632]
[1728508745431,0.35033868,60610.0,60609.0,0.001632]
[1728508745696,0.04755958,60610.0,60609.0,0.001632]
[1728508745930,0.18349949,60610.0,60609.0,0.001632]
[1728508746152,0.01851049,60610.0,60609.0,0.001632]
[1728508746368,0.03251049,60610.0,60609.0,0.166623]
[1728508746583,0.19749949,60610.0,60609.0,0.001632]
[1728508746821,0.18349949,60610.0,60609.0,0.001632]
[1728508747057,0.16949949,60610.0,60609.0,0.001632]
[1728508747275,0.18349949,60610.0,60609.0,0.001632]
[1728508747490,0.16949949,60610.0,60609.0,0.002132]
[1728508747706,0.18349949,60610.0,60609.0,0.002132]
[1728508747922,0.19549949,60610.0,60609.0,0.002132]
[1728508748381,0.03051049,60610.0,60609.0,0.002132]
[1728508749032,0.01651049,60610.0,60609.0,0.002132]
[1728508749244,0.19249949,60610.0,60609.0,0.001632]
[1728508749951,0.187989,60610.0,60609.0,0.001632]
[1728508750168,0.21151199,60610.0,60609.0,0.001632]
[1728508751711,0.33214724,60610.0,60609.0,0.001632]
[1728508753602,0.52093734,60610.0,60609.0,0.001632]
[1728508753801,0.52093734,60610.0,60600.0,0.24782644]
[1728508753802,0.16996546,60601.0,60600.0,0.24782644]
[1728508754016,0.34590076,60601.0,60600.0,0.24782644]
[1728508754238,0.47949524,60601.0,60600.0,4e-05]
[1728508754455,0.487841,60601.0,60600.0,4e-05]
[1728508754913,0.501841,60601.0,60600.0,4e-05]
[1728508756426,0.57529006,60601.0,60600.0,4e-05]
[1728508756826,0.58929006,60601.0,60600.0,4e-05]
[1728508757941,0.43269558,60601.0,60600.0,4e-05]
[1728508759065,0.43269558,60601.0,60600.0,0.001674]
[1728508760222,0.45569558,60601.0,60600.0,0.001674]
[1728508760725,0.45579396,60601.0,60600.0,0.001674]
[1728508763040,0.43279396,60601.0,60600.0,0.001674]
[1728508763261,0.43279396,60601.0,60600.0,0.002174]
[1728508764134,0.57508483,60601.0,60600.0,0.002174]
[1728508764376,0.16503,60595.0,60594.0,0.001634]
[1728508764599,0.23068217,60595.0,60594.0,0.001634]
[1728508764820,0.18418218,60595.0,60594.0,0.001634]
[1728508765385,0.18857887,60595.0,60594.0,0.001634]
[1728508765595,0.20257887,60595.0,60594.0,0.001634]
[1728508766667,0.03754887,60595.0,60594.0,0.166666]
[1728508766882,0.03754887,60595.0,60594.0,0.244666]
[1728508766883,0.02920311,60595.0,60594.0,0.244666]
[1728508767096,0.02920311,60595.0,60594.0,0.50550364]
[1728508767305,0.028,60595.0,60594.0,0.50550364]
[1728508767525,0.04320814,60595.0,60594.0,0.50550364]
[1728508767745,0.02920814,60595.0,60594.0,0.50550364]
[1728508767948,0.01520814,60595.0,60594.0,0.50550364]
[1728508768155,0.01920814,60595.0,60594.0,0.50650364]
[1728508768599,0.01520814,60595.0,60594.0,0.50650364]
[1728508769461,0.00394117,60610.0,60595.0,0.078]
[1728508769678,0.24778644,60604.0,60603.0,0.165008]
[1728508769887,0.01520881,60604.0,60603.0,0.165008]
[1728508770088,0.01520881,60604.0,60603.0,0.765022]
[1728508770929,0.00894117,60610.0,60609.0,0.164991]
[1728508771134,0.02415227,60610.0,60609.0,0.164991]
[1728508771543,0.01915227,60610.0,60609.0,0.164991]
[1728508772423,0.165013,60601.0,60600.0,0.001636]
[1728508772642,0.1802241,60601.0,60600.0,0.00989509]
[1728508773321,0.18462182,60601.0,60600.0,0.00989509]
[1728508773560,0.18462182,60601.0,60600.0,0.01089509]
[1728508773781,0.01960882,60601.0,60600.0,0.01089509]